{"text_format":"1","workbook":"xlsx","n_sheets":6,"sheets":["Távhő Ökocímke Adatlap","1.táblázat","2.táblázat","3.táblázat","4.táblázat","6.táblázat"],"not_rendered":{"charts":0,"images":5,"macros":1,"external_links":0,"defined_names":6,"comments":1,"pivot_tables":0},"unopened":[],"bounds":{"document_bytes":16777216,"sheet_cells":100000,"rows_first":2000,"rows_last":500,"rows_between":2000,"halvings":0,"cell_chars":16384,"cell_head_chars":4096},"cells_cut":0,"cells_raw":0,"read":"whole","date_system":"1900"}

{"sheet":"Távhő Ökocímke Adatlap","index":0,"n_rows":60,"n_cols":16,"rows_kept":60,"cut":false,"hidden":false,"merged":[[3,1,3,3],[2,1,2,2],[32,8,32,15],[4,1,4,3],[50,0,50,3],[26,0,26,3],[37,0,37,3]]}
[]
["Távhő Ökocímke Adatlap"]
["Távhő Ökocímke igénylés azonosító száma","MTÖ-2017-001",null,"Kérjük a  szürke mezők kitöltését, az adott mezőhöz tartozó megjegyzés figyelembevételével. ",null,null,"A világos kék mezőket csak akkor kell módosítania, ha van pontosabb adata. "]
["Távhőszolgáltató neve","XY "]
["Távhőrendszer megnevezése","AB távhőrendszer"]
[null,"S"]
["Hőforrás megnevezése",null,"A Fűtőmű","B Fűtőmű","C Fűtőmű","D Fűtőmű","E Fűtőmű","F Fűtőmű","G Fűtőmű","H Fűtőmű","I Fűtőmű","J Fűtőmű","K Fűtőmű","L Fűtőmű","M Fűtőmű","N Fűtőmű"]
["Távhőtermelési technológia sorszáma (i)",null,"9.Kapcsolt energiatermelés kombinált ciklusú erőművi blokkban","-","-","-","-","-","-","-","-","-","-","-","-","-"]
["Felhasznált primerenergia fajtája",null,"Földgáz","-","-","-","-","-","-","-","-","-","-","-","-","-"]
["Qi (GJ)",{"$f":"SUM(C10:P10)","v":40000},40000]
["ai",null,{"$f":"C10/$B$10","v":1},{"$f":"D10/$B$10","v":0},{"$f":"E10/$B$10","v":0},0,0,0,0,0,0,0,0,0,0,0]
["ei",null,{"$f":"VLOOKUP(C$8,'1.táblázat'!$A$1:$B$16,2,FALSE)","v":0.54},{"$f":"VLOOKUP(D$8,'1.táblázat'!$A$1:$B$16,2,FALSE)","v":0},{"$f":"VLOOKUP(E$8,'1.táblázat'!$A$1:$B$16,2,FALSE)","v":0},{"$f":"VLOOKUP(F$8,'1.táblázat'!$A$1:$B$16,2,FALSE)","v":0},{"$f":"VLOOKUP(G$8,'1.táblázat'!$A$1:$B$16,2,FALSE)","v":0},{"$f":"VLOOKUP(H$8,'1.táblázat'!$A$1:$B$16,2,FALSE)","v":0},{"$f":"VLOOKUP(I$8,'1.táblázat'!$A$1:$B$16,2,FALSE)","v":0},{"$f":"VLOOKUP(J$8,'1.táblázat'!$A$1:$B$16,2,FALSE)","v":0},{"$f":"VLOOKUP(K$8,'1.táblázat'!$A$1:$B$16,2,FALSE)","v":0},{"$f":"VLOOKUP(L$8,'1.táblázat'!$A$1:$B$16,2,FALSE)","v":0},{"$f":"VLOOKUP(M$8,'1.táblázat'!$A$1:$B$16,2,FALSE)","v":0},{"$f":"VLOOKUP(N$8,'1.táblázat'!$A$1:$B$16,2,FALSE)","v":0},{"$f":"VLOOKUP(O$8,'1.táblázat'!$A$1:$B$16,2,FALSE)","v":0},{"$f":"VLOOKUP(P$8,'1.táblázat'!$A$1:$B$16,2,FALSE)","v":0}]
["n",0.128]
["avil",{"$f":"IF(B10<100000,0.011,IF(B10>=500000,0.005,0.008))","v":1.0999999999999999E-2}]
["evil",2.5]
["gCO2,i (kg/GJ)",null,{"$f":"VLOOKUP(C9,'4.táblázat'!$A$2:$B$19,2,0)","v":56.1},{"$f":"VLOOKUP(D9,'4.táblázat'!$A$2:$B$19,2,0)","v":0},{"$f":"VLOOKUP(E9,'4.táblázat'!$A$2:$B$19,2,0)","v":0},{"$f":"VLOOKUP(F9,'4.táblázat'!$A$2:$B$19,2,0)","v":0},{"$f":"VLOOKUP(G9,'4.táblázat'!$A$2:$B$19,2,0)","v":0},{"$f":"VLOOKUP(H9,'4.táblázat'!$A$2:$B$19,2,0)","v":0},{"$f":"VLOOKUP(I9,'4.táblázat'!$A$2:$B$19,2,0)","v":0},{"$f":"VLOOKUP(J9,'4.táblázat'!$A$2:$B$19,2,0)","v":0},{"$f":"VLOOKUP(K9,'4.táblázat'!$A$2:$B$19,2,0)","v":0},{"$f":"VLOOKUP(L9,'4.táblázat'!$A$2:$B$19,2,0)","v":0},{"$f":"VLOOKUP(M9,'4.táblázat'!$A$2:$B$19,2,0)","v":0},{"$f":"VLOOKUP(N9,'4.táblázat'!$A$2:$B$19,2,0)","v":0},{"$f":"VLOOKUP(O9,'4.táblázat'!$A$2:$B$19,2,0)","v":0},{"$f":"VLOOKUP(P9,'4.táblázat'!$A$2:$B$19,2,0)","v":0}]
["ai*ei*gCO2,i*(1-bres,i)",null,{"$f":"C11*C12*C16*(1-C20)","v":30.294000000000004},{"$f":"D11*D12*D16*(1-D20)","v":0},{"$f":"E11*E12*E16*(1-E20)","v":0},0,0,0,0,0,0,0,0,0,0,0]
["gCO2,vil (kg/MWh)",{"$f":"'4.táblázat'!B20","v":358.7}]
["T (GJ)",{"$f":"SUM(C19:P19)","v":21600},{"$f":"C10*C12","v":21600},{"$f":"D10*D12","v":0},{"$f":"E10*E12","v":0},0,0,0,0,0,0,0,0,0,0,0]
["bi,res",null,{"$f":"VLOOKUP(C9,'4.táblázat'!$A$1:$C$18,3,FALSE)","v":0},{"$f":"VLOOKUP(D9,'4.táblázat'!$A$1:$C$18,3,FALSE)","v":0},{"$f":"VLOOKUP(E9,'4.táblázat'!$A$1:$C$18,3,FALSE)","v":0},{"$f":"VLOOKUP(F9,'4.táblázat'!$A$1:$C$18,3,FALSE)","v":0},{"$f":"VLOOKUP(G9,'4.táblázat'!$A$1:$C$18,3,FALSE)","v":0},{"$f":"VLOOKUP(H9,'4.táblázat'!$A$1:$C$18,3,FALSE)","v":0},{"$f":"VLOOKUP(I9,'4.táblázat'!$A$1:$C$18,3,FALSE)","v":0},{"$f":"VLOOKUP(J9,'4.táblázat'!$A$1:$C$18,3,FALSE)","v":0},{"$f":"VLOOKUP(K9,'4.táblázat'!$A$1:$C$18,3,FALSE)","v":0},{"$f":"VLOOKUP(L9,'4.táblázat'!$A$1:$C$18,3,FALSE)","v":0},{"$f":"VLOOKUP(M9,'4.táblázat'!$A$1:$C$18,3,FALSE)","v":0},{"$f":"VLOOKUP(N9,'4.táblázat'!$A$1:$C$18,3,FALSE)","v":0},{"$f":"VLOOKUP(O9,'4.táblázat'!$A$1:$C$18,3,FALSE)","v":0},{"$f":"VLOOKUP(P9,'4.táblázat'!$A$1:$C$18,3,FALSE)","v":0}]
["Tres (GJ)",{"$f":"SUM(C21:P21)","v":0},{"$f":"C19*C20","v":0},{"$f":"D19*D20","v":0},{"$f":"E19*E20","v":0},0,0,0,0,0,0,0,0,0,0,0]
["bvil,res",{"$f":"'4.táblázat'!C20","v":7.2099999999999997E-2}]
["Tvil (GJ)",{"$f":"B10*B14*B15","v":1100}]
["Tvil,res (GJ)",{"$f":"B23*B22","v":79.31}]
["SPF (csak hőszivattyús termelés esetén)",1]
[]
["A távhőrendszer primerenergia hatékonysági tényezőjének (e) kiszámítása"]
[]
[]
[]
[]
[null,null,"A távhőrendszer primerenergia hatékonysági tényezőjének értéke (GJ/GJ)"]
[null,null,{"$f":"1/(1-B13)*(B15*B14+SUMPRODUCT(C11:P11,C12:P12))","v":0.65080275229357798}]
[]
[null,null,"A távhőrendszer primerenergia hatékonysági osztálya"]
[null,null,{"$f":"IF(C33<'6.táblázat'!D2,'6.táblázat'!A2,IF(AND('6.táblázat'!B3<=C33,C33<'6.táblázat'!D3),'6.táblázat'!A3,IF(AND('6.táblázat'!B4<=C33,C33<'6.táblázat'!D4),'6.táblázat'!A4,IF(AND('6.táblázat'!B5<=C33,C33<'6.táblázat'!D5),'6.táblázat'!A5,IF(AND('6.táblázat'!B6<=C33,C33<'6.táblázat'!D6),'6.táblázat'!A6,IF(AND('6.táblázat'!B7<=C33,C33<'6.táblázat'!D7),'6.táblázat'!A7,'6.táblázat'!A8))))))","v":"A+"}]
[]
["A megújuló energiaforrásokkal termelt távhő (βres) részarányának kiszámítása"]
[]
[]
[]
[]
[]
[]
[null,null,"A távhőrendszerben megújuló energiaforrásokkal termelt távhő részaránya"]
[null,null,{"$f":"(SUMPRODUCT(C11:P11,C20:P20)+B14*B22)/(1+B14)","v":7.8447082096933733E-4}]
[]
[null,null,"A távhőrendszer megújuló energiaforrásokkal termelt távhő részaránya szerinti osztályba sorolása"]
[null,null,{"$f":"IF(C46>'6.táblázat'!G2,'6.táblázat'!A2,IF(AND('6.táblázat'!E3>='6.táblázat'!A47,C46>'6.táblázat'!G3),'6.táblázat'!A3,IF(AND('6.táblázat'!E4>=C46,C46>'6.táblázat'!G4),'6.táblázat'!A4,IF(AND('6.táblázat'!E5>=C46,C46>'6.táblázat'!G5),'6.táblázat'!A5,IF(AND('6.táblázat'!E6>=C46,C46>'6.táblázat'!G6),'6.táblázat'!A6,IF(AND('6.táblázat'!E7>=C46,C46>'6.táblázat'!G7),'6.táblázat'!A7,'6.táblázat'!A8))))))","v":"F"}]
[]
["A távhőrendszer fajlagos CO2-kibocsátásának (gco2) kiszámítása"]
[]
[]
[]
[]
[null,null,"A távhőrendszer fajlagos CO2-kibocsátása (kg/GJ)"]
[null,null,{"$f":"1/(1-B13)*(B14*B18/3.6+SUM(C17:P17))","v":35.997738277268098}]
[]
[null,null,"A távhőrendszer fajlagos CO2-kibocsátás szerinti osztályba sorolása"]
[null,null,{"$f":"IF(C57<'6.táblázat'!J2,'6.táblázat'!A2,IF(AND('6.táblázat'!H3<=C57,C57<'6.táblázat'!J3),'6.táblázat'!A3,IF(AND('6.táblázat'!H4<=C57,C57<'6.táblázat'!J4),'6.táblázat'!A4,IF(AND('6.táblázat'!H5<=C57,C57<'6.táblázat'!J5),'6.táblázat'!A5,IF(AND('6.táblázat'!H6<=C57,C57<'6.táblázat'!J6),'6.táblázat'!A6,IF(AND('6.táblázat'!H7<=C57,C57<'6.táblázat'!J7),'6.táblázat'!A7,'6.táblázat'!A8))))))","v":"A+"}]

{"sheet":"1.táblázat","index":1,"n_rows":16,"n_cols":2,"rows_kept":16,"cut":false,"hidden":false,"merged":[]}
["Távhőtermelő technológia","Távhőtermelő technológia\nprimerenergia-átalakítási tényezője (ei)"]
["-",0]
["1.Kizárólagos (nem kapcsolt) hőtermelés (fűtőmű/kazánház) - szénhidrogének (földgáz, tüzelőolaj, fűtőolaj)",1.1200000000000001]
["2.Kizárólagos (nem kapcsolt) hőtermelés (fűtőmű/kazánház) - biogáz",1.1200000000000001]
["3.Kizárólagos (nem kapcsolt) hőtermelés (fűtőmű/kazánház) - szénféleségek",{"$f":"1/0.8","v":1.25}]
["4.Kizárólagos (nem kapcsolt) hőtermelés (fűtőmű/kazánház) - tüzifa, faapríték, fahulladék, biobrikett, egyéb bio tüzelőanyagok",{"$f":"1/0.86","v":1.1627906976744187}]
["5.Kizárólagos (nem kapcsolt) hőtermelés (fűtőmű/kazánház) - kommunális hulladék",{"$f":"1/0.82","v":1.2195121951219512}]
["6.Kizárólagos (nem kapcsolt) hőtermelés (fűtőmű/kazánház) - ipari hulladékhő",0]
["7.Kizárólagos (nem kapcsolt) hőtermelés (fűtőmű/kazánház) - szoláris- és geotermikus energia",1]
["8.Nukleáris energia",1]
["9.Kapcsolt energiatermelés kombinált ciklusú erőművi blokkban",0.54]
["10.Kapcsolt energiatermelés hagyományos gőz-körfolyamatú erőművi blokkban",0.87]
["11.Kapcsolt energiatermelés 1.200 kWe villamos egységteljesítményt meghaladó gázmotorral ",0.55000000000000004]
["12.Kapcsolt energiatermelés 1.200 kWe villamos egységteljesítményt nem meghaladó gázmotorral ",0.72]
["13.Kapcsolt energiatermelés hőhasznosító kazánnal ellátott gázturbinás erőműben ",0.82]
["14.Kapcsolt energiatermelés hőszivattyúval",{"$f":"1/0.4/3.5","v":0.7142857142857143}]

{"sheet":"2.táblázat","index":2,"n_rows":5,"n_cols":2,"rows_kept":5,"cut":false,"hidden":false,"merged":[[0,0,0,1]]}
["A hőtermeléshez és primer oldali keringtetéshez felhasznált villamos energia aránya a kiadott hőmennyiségre vetítve (avil) a hőtermelő által kiadott hőmennyiség (Q /GJ/év/) függvényében "]
["Q (GJ/év)","avill (GJ/GJ)"]
["Q<100.000",1.0999999999999999E-2]
["100.000<=Q<500.000",8.0000000000000002E-3]
["500.000=<Q",6.0000000000000001E-3]

{"sheet":"3.táblázat","index":3,"n_rows":11,"n_cols":2,"rows_kept":11,"cut":false,"hidden":false,"merged":[[0,0,0,1],[1,0,2,0],[9,1,10,1]]}
["Egyes primer energiaforrások, valamint a hőszivattyús hőtermelés megújuló részaránya"]
["Primer energiaforrás","Megújuló részarány"]
[null,"bres"]
["Földgáz, fűtő- és tüzelőolajok, szénféleségek, nukleáris energia",0]
["Tűzifa, faapríték, fahulladék, biobrikett, egyéb bio tüzelőanyagok",1]
["Biogáz, biometán",1]
["Szoláris-, geotermikus-, szél- és vízenergia",1]
["Kommunális hulladék",0.6]
["Ipari hulladékhő",1]
["Hőszivattyú","1-1/SPF*"]
["  *ahol SPF a hőszivattyú átlagos szezonális fűtési tényezője"]

{"sheet":"4.táblázat","index":4,"n_rows":22,"n_cols":3,"rows_kept":22,"cut":false,"hidden":false,"merged":[[0,0,0,1],[21,0,21,2]]}
["Primer energiaforrások és a villamosenergia-rendszer fajlagos CO2 kibocsátási tényezői",null,"Megújuló részarány"]
["Primer energiaforrás","gCO2 (kg/GJ)","bres"]
["-",0,0]
["Szén",94.6,0]
["Lignit",113.2,0]
["Tűzifa és fahulladék, biobrikett, egyéb bio tüzelőanyagok",109.6,1]
["Szoláris-, geotermikus-, szél- és vízenergia",0,1]
["Nukleárisenergia",0,0]
["Ipari hulladékhő",0,1]
["Kommunális hulladék",90.5,0.6]
["Tüzelőolajok",74.099999999999994,0]
["Fűtőolajok",77.400000000000006,0]
["Földgáz",56.1,0]
["PB-gáz",63.1,0]
["Kamragáz",47.7,0]
["Kohógáz",242,0]
["Biogáz",54.9,1]
["Hőszivattyú esetén ",null,"1-1/SPF*"]
[null,"gCO2 (kg/MWh)"]
[" Villamosenergia-rendszer (Pakssal)*",358.7,7.2099999999999997E-2]
[]
["* Források: \nMagyar Energetika  2017/1.\nA MAGYAR VILLAMOSENERGIA-RENDSZER (VER) 2015. ÉVI ADATAI, MEKH, MAVIR"]

{"sheet":"6.táblázat","index":5,"n_rows":8,"n_cols":10,"rows_kept":8,"cut":false,"hidden":false,"merged":[[0,1,0,3],[0,4,0,6],[0,7,0,9]]}
["Osztály","e",null,null,"bRes",null,null,"gCO2"]
["A+",null,"e<",0.94,null,"bRes>",0.29299999999999998,null,"gCO2<",40.4]
["A",0.94,"≤e<",1.03,0.29299999999999998,"³bRes>",0.1905,40.4,"≤gCO2<",47.1]
["B",1.03,"≤e<",1.1100000000000001,0.1905,"³bRes>",0.14649999999999999,47.1,"≤gCO2<",53.9]
["C",1.1100000000000001,"≤e<",1.2,0.14649999999999999,"³bRes>",0.1172,53.9,"≤gCO2<",67.3]
["D",1.2,"≤e<",1.29,0.1172,"³bRes>",8.7900000000000006E-2,67.3,"≤gCO2<",77.400000000000006]
["E",1.29,"≤e<",1.37,8.7900000000000006E-2,"³bRes>",4.3999999999999997E-2,77.400000000000006,"≤gCO2<",87.5]
["F",1.37,"≤e",null,4.3999999999999997E-2,"³bRes",null,87.5,"≤gCO2"]